[Event "*** Titled Tuesday Blitz"]
[Site "Chess.com"]
[Date "2019.06.04"]
[Round "5"]
[White "IMDT02"]
[Black "Fighter008"]
[Result "0-1"]
[WhiteElo "2474"]
[BlackElo "2643"]
[TimeControl "180+2"]
[EndTime "14:05:10 PDT"]
[Termination "Fighter008 won by resignation"]

1. d4 {[%clk 0:03:01.9]} 1... Nf6 {[%clk 0:03:00]} 2. Bf4 {[%clk 0:03:02.3]}
2... g6 {[%clk 0:03:01]} 3. e3 {[%clk 0:03:02.6]} 3... Bg7 {[%clk 0:03:02.3]} 4.
Nf3 {[%clk 0:03:03.9]} 4... O-O {[%clk 0:03:03.8]} 5. h3 {[%clk 0:03:05.5]} 5...
d6 {[%clk 0:03:05.2]} 6. Nbd2 {[%clk 0:03:06.8]} 6... Nfd7 {[%clk 0:03:05.2]} 7.
Bh2 {[%clk 0:03:07]} 7... e5 {[%clk 0:03:06]} 8. c3 {[%clk 0:03:06.4]} 8... Nc6
{[%clk 0:03:07.3]} 9. Be2 {[%clk 0:03:03]} 9... h6 {[%clk 0:03:07.8]} 10. O-O
{[%clk 0:03:03.4]} 10... f5 {[%clk 0:03:08.8]} 11. a4 {[%clk 0:02:55.4]} 11...
g5 {[%clk 0:02:57.8]} 12. b4 {[%clk 0:02:35.5]} 12... f4 {[%clk 0:02:38.2]} 13.
b5 {[%clk 0:02:33.9]} 13... Ne7 {[%clk 0:02:38.9]} 14. exf4 {[%clk 0:02:16.8]}
14... exf4 {[%clk 0:02:38]} 15. Ne1 {[%clk 0:02:12.6]} 15... Nf6 {[%clk
0:02:37.9]} 16. Kh1 {[%clk 0:02:09.7]} 16... Bf5 {[%clk 0:02:29.9]} 17. Bd3
{[%clk 0:01:50.8]} 17... Qd7 {[%clk 0:02:30.1]} 18. Qc2 {[%clk 0:01:50.5]} 18...
Rae8 {[%clk 0:02:27.9]} 19. f3 {[%clk 0:01:44.1]} 19... h5 {[%clk 0:02:25.7]}
20. Bg1 {[%clk 0:01:41.4]} 20... Bxd3 {[%clk 0:02:25.7]} 21. Qxd3 {[%clk
0:01:34.3]} 21... Nf5 {[%clk 0:02:27]} 22. Bf2 {[%clk 0:01:33.4]} 22... g4
{[%clk 0:02:24.6]} 23. fxg4 {[%clk 0:01:23.4]} 23... hxg4 {[%clk 0:02:25.6]} 24.
hxg4 {[%clk 0:01:03.5]} 24... Nxg4 {[%clk 0:02:25.7]} 25. Qh3 {[%clk 0:01:04.4]}
25... Rf6 {[%clk 0:02:01.6]} 26. Kg1 {[%clk 0:00:59.6]} 26... Rg6 {[%clk
0:01:59.2]} 27. Nef3 {[%clk 0:00:55.3]} 27... Nfe3 {[%clk 0:01:47.3]} 28. Bxe3
{[%clk 0:00:52.9]} 28... fxe3 {[%clk 0:01:49.2]} 29. Nb3 {[%clk 0:00:31.3]}
29... e2 {[%clk 0:01:48]} 30. Rfe1 {[%clk 0:00:31.7]} 30... Qe6 {[%clk
0:01:48.2]} 31. Nfd2 {[%clk 0:00:25.9]} 31... Bh6 {[%clk 0:01:39.9]} 32. g3
{[%clk 0:00:18.9]} 32... Qe3+ {[%clk 0:01:33.6]} 33. Kh1 {[%clk 0:00:18.4]}
33... Nf2+ {[%clk 0:01:33.5]} 0-1

[Event "*** Titled Tuesday Blitz"]
[Site "Chess.com"]
[Date "2019.06.04"]
[Round "5"]
[White "europa2012"]
[Black "Denis_Palkovich"]
[Result "1-0"]
[WhiteElo "2132"]
[BlackElo "2223"]
[TimeControl "180+2"]
[EndTime "14:05:10 PDT"]
[Termination "europa2012 won on time"]

1. d4 {[%clk 0:03:01.9]} 1... d5 {[%clk 0:02:47.2]} 2. c4 {[%clk 0:03:02.4]}
2... Bf5 {[%clk 0:02:41.6]} 3. cxd5 {[%clk 0:03:02.9]} 3... Bxb1 {[%clk
0:02:36.4]} 4. Qa4+ {[%clk 0:03:03.8]} 4... Qd7 {[%clk 0:02:35.9]} 5. Qxd7+
{[%clk 0:03:04.1]} 5... Nxd7 {[%clk 0:02:37.4]} 6. Rxb1 {[%clk 0:03:05.7]} 6...
Ngf6 {[%clk 0:02:34]} 7. Nf3 {[%clk 0:03:06.9]} 7... g6 {[%clk 0:02:29.5]} 8. g3
{[%clk 0:03:03.7]} 8... Nxd5 {[%clk 0:02:24.7]} 9. e4 {[%clk 0:03:04.3]} 9...
Nb4 {[%clk 0:02:22.8]} 10. a3 {[%clk 0:02:59.9]} 10... Nc6 {[%clk 0:02:21.3]}
11. Bg2 {[%clk 0:02:57]} 11... Bg7 {[%clk 0:02:20.8]} 12. Be3 {[%clk 0:02:58.2]}
12... O-O {[%clk 0:02:17.7]} 13. O-O {[%clk 0:02:58.4]} 13... e5 {[%clk
0:01:35]} 14. d5 {[%clk 0:02:56.6]} 14... Nd4 {[%clk 0:01:22.5]} 15. Bxd4 {[%clk
0:02:52.5]} 15... exd4 {[%clk 0:01:23.4]} 16. Rfd1 {[%clk 0:02:54.2]} 16... f5
{[%clk 0:00:52.9]} 17. Nxd4 {[%clk 0:02:40.2]} 17... fxe4 {[%clk 0:00:53.2]} 18.
Ne6 {[%clk 0:02:38.8]} 18... Rf7 {[%clk 0:00:48.9]} 19. Nxc7 {[%clk 0:02:35.5]}
19... Rc8 {[%clk 0:00:49.2]} 20. Nb5 {[%clk 0:02:23.7]} 20... Rc2 {[%clk
0:00:44.8]} 21. Rf1 {[%clk 0:02:18.4]} 21... Rxb2 {[%clk 0:00:37.1]} 22. Rxb2
{[%clk 0:02:17.1]} 22... Bxb2 {[%clk 0:00:39]} 23. Bh3 {[%clk 0:02:12]} 23...
Kg7 {[%clk 0:00:26.4]} 24. Be6 {[%clk 0:02:06.5]} 24... Re7 {[%clk 0:00:18.6]}
25. Nxa7 {[%clk 0:02:04.3]} 25... Nc5 {[%clk 0:00:15.8]} 26. Nb5 {[%clk
0:01:44.3]} 26... Nxe6 {[%clk 0:00:14.7]} 27. dxe6 {[%clk 0:01:45.4]} 27... Rxe6
{[%clk 0:00:15]} 28. Rb1 {[%clk 0:01:45]} 28... Be5 {[%clk 0:00:10.9]} 29. Rd1
{[%clk 0:01:43.4]} 29... Re7 {[%clk 0:00:08.1]} 30. Re1 {[%clk 0:01:39.4]} 30...
Bb8 {[%clk 0:00:06.8]} 31. Nc3 {[%clk 0:01:36.7]} 31... Bd6 {[%clk 0:00:04]} 32.
a4 {[%clk 0:01:35.5]} 32... Bb4 {[%clk 0:00:04.3]} 33. Rxe4 {[%clk 0:01:34.3]}
1-0

[Event "*** Titled Tuesday Blitz"]
[Site "Chess.com"]
[Date "2019.06.04"]
[Round "5"]
[White "Karacsonyi_Gellert"]
[Black "Ambitiousresolutions"]
[Result "1/2-1/2"]
[WhiteElo "2549"]
[BlackElo "2605"]
[TimeControl "180+2"]
[EndTime "14:05:11 PDT"]
[Termination "Game drawn by repetition"]

1. e4 {[%clk 0:03:01.9]} 1... e5 {[%clk 0:02:59.7]} 2. Nf3 {[%clk 0:03:02.4]}
2... Nc6 {[%clk 0:03:00.9]} 3. Bb5 {[%clk 0:03:03.2]} 3... a6 {[%clk 0:03:01.6]}
4. Bxc6 {[%clk 0:03:04.2]} 4... dxc6 {[%clk 0:03:02.3]} 5. O-O {[%clk
0:03:06.1]} 5... f6 {[%clk 0:03:02.4]} 6. d4 {[%clk 0:03:06.2]} 6... Bg4 {[%clk
0:03:03.3]} 7. dxe5 {[%clk 0:03:05.4]} 7... Qxd1 {[%clk 0:03:05.2]} 8. Rxd1
{[%clk 0:03:06.8]} 8... Bxf3 {[%clk 0:03:06.7]} 9. gxf3 {[%clk 0:03:06.8]} 9...
fxe5 {[%clk 0:03:08.6]} 10. f4 {[%clk 0:03:06]} 10... Nf6 {[%clk 0:02:51.5]} 11.
fxe5 {[%clk 0:03:05.8]} 11... Nxe4 {[%clk 0:02:52.5]} 12. Be3 {[%clk 0:03:04.9]}
12... Bc5 {[%clk 0:02:49.7]} 13. Bxc5 {[%clk 0:03:03.5]} 13... Nxc5 {[%clk
0:02:51.6]} 14. Nc3 {[%clk 0:03:00.5]} 14... Rf8 {[%clk 0:02:44.9]} 15. Rd4
{[%clk 0:02:54.9]} 15... Ke7 {[%clk 0:02:39.4]} 16. Rad1 {[%clk 0:02:51.8]}
16... a5 {[%clk 0:02:29.7]} 17. f4 {[%clk 0:02:42.4]} 17... Rf7 {[%clk
0:02:24.5]} 18. Kg2 {[%clk 0:02:37.6]} 18... Raf8 {[%clk 0:02:23.9]} 19. Kg3
{[%clk 0:02:38.5]} 19... Rf5 {[%clk 0:02:17.1]} 20. a3 {[%clk 0:02:31.3]} 20...
a4 {[%clk 0:02:01.1]} 21. Nxa4 {[%clk 0:02:26.6]} 21... Nxa4 {[%clk 0:02:03]}
22. Rxa4 {[%clk 0:02:23.3]} 22... g5 {[%clk 0:02:03.8]} 23. Rad4 {[%clk
0:02:05.9]} 23... gxf4+ {[%clk 0:01:50.7]} 24. Kf3 {[%clk 0:02:06.8]} 24... Ke6
{[%clk 0:01:46.5]} 25. Rd7 {[%clk 0:01:58.1]} 25... R8f7 {[%clk 0:01:46.7]} 26.
Rxf7 {[%clk 0:01:55.7]} 26... Rxf7 {[%clk 0:01:48.6]} 27. Re1 {[%clk 0:01:47.7]}
27... Rf5 {[%clk 0:01:43.3]} 28. Re4 {[%clk 0:01:48.2]} 28... Rxe5 {[%clk
0:01:41.3]} 29. Kxf4 {[%clk 0:01:46]} 29... Rxe4+ {[%clk 0:01:40]} 30. Kxe4
{[%clk 0:01:47.9]} 30... c5 {[%clk 0:01:36.9]} 31. c4 {[%clk 0:01:40.1]} 31...
c6 {[%clk 0:01:34.1]} 32. a4 {[%clk 0:01:37.5]} 32... Kf6 {[%clk 0:01:30.9]} 33.
Kf4 {[%clk 0:01:36.9]} 33... Ke6 {[%clk 0:01:29.4]} 34. h4 {[%clk 0:01:34.3]}
34... Kf6 {[%clk 0:01:29.1]} 35. a5 {[%clk 0:01:33.1]} 35... h6 {[%clk
0:01:26.7]} 36. Ke4 {[%clk 0:01:05.2]} 36... Ke6 {[%clk 0:01:24.2]} 37. Kf4
{[%clk 0:01:05.4]} 37... Kf6 {[%clk 0:01:25.3]} 38. Kg4 {[%clk 0:00:59.1]} 38...
Kg6 {[%clk 0:01:24.2]} 39. Kf4 {[%clk 0:00:37.9]} 39... Kf6 {[%clk 0:01:25]}
1/2-1/2

[Event "*** Titled Tuesday Blitz"]
[Site "Chess.com"]
[Date "2019.06.04"]
[Round "5"]
[White "x-6099009240"]
[Black "MathiasWomacka"]
[Result "1-0"]
[WhiteElo "2346"]
[BlackElo "2297"]
[TimeControl "180+2"]
[EndTime "14:05:14 PDT"]
[Termination "x-6099009240 won by resignation"]

1. e4 {[%clk 0:03:01.9]} 1... c5 {[%clk 0:03:00.9]} 2. Nf3 {[%clk 0:03:02.9]}
2... d6 {[%clk 0:03:02.2]} 3. d4 {[%clk 0:03:04.8]} 3... cxd4 {[%clk 0:03:03.9]}
4. Nxd4 {[%clk 0:03:06.7]} 4... Nf6 {[%clk 0:03:05.3]} 5. Nc3 {[%clk 0:03:06.7]}
5... a6 {[%clk 0:03:06.6]} 6. Be3 {[%clk 0:03:08.1]} 6... e5 {[%clk 0:03:07.4]}
7. Nb3 {[%clk 0:03:09.8]} 7... Be6 {[%clk 0:03:08.4]} 8. f3 {[%clk 0:03:11.5]}
8... Be7 {[%clk 0:03:08.7]} 9. Qd2 {[%clk 0:03:13.1]} 9... O-O {[%clk
0:03:09.6]} 10. O-O-O {[%clk 0:03:15]} 10... Nbd7 {[%clk 0:03:09]} 11. g4 {[%clk
0:03:12.5]} 11... Qc7 {[%clk 0:03:09.9]} 12. g5 {[%clk 0:03:14.4]} 12... Nh5
{[%clk 0:03:10.1]} 13. Kb1 {[%clk 0:03:13.2]} 13... b5 {[%clk 0:03:10.5]} 14.
Ne2 {[%clk 0:03:14.7]} 14... Rfc8 {[%clk 0:02:41.6]} 15. Ng3 {[%clk 0:03:13.1]}
15... Nf4 {[%clk 0:02:42.3]} 16. h4 {[%clk 0:03:14.6]} 16... d5 {[%clk 0:02:38]}
17. Nf5 {[%clk 0:03:11.6]} 17... Bf8 {[%clk 0:02:28.3]} 18. h5 {[%clk
0:02:58.5]} 18... Nb6 {[%clk 0:02:03.2]} 19. g6 {[%clk 0:02:50.8]} 19... fxg6
{[%clk 0:01:56.7]} 20. hxg6 {[%clk 0:02:52.7]} 20... hxg6 {[%clk 0:01:57.7]} 21.
Nh4 {[%clk 0:02:33]} 21... Nc4 {[%clk 0:01:48.1]} 22. Bxc4 {[%clk 0:02:33.1]}
22... dxc4 {[%clk 0:01:49.3]} 23. Nc1 {[%clk 0:02:29.6]} 23... Rd8 {[%clk
0:01:46.6]} 24. Qh2 {[%clk 0:02:24.4]} 24... Rxd1 {[%clk 0:01:43.6]} 25. Rxd1
{[%clk 0:02:26.3]} 25... Rd8 {[%clk 0:01:36.6]} 26. Rxd8 {[%clk 0:02:25.2]}
26... Qxd8 {[%clk 0:01:37.8]} 27. Bxf4 {[%clk 0:02:27.1]} 27... exf4 {[%clk
0:01:37.2]} 28. Nxg6 {[%clk 0:02:29]} 28... Qf6 {[%clk 0:01:30.8]} 29. Qh8+
{[%clk 0:02:26.1]} 29... Kf7 {[%clk 0:01:31.3]} 30. Nxf8 {[%clk 0:02:28]} 30...
Bc8 {[%clk 0:01:21.3]} 31. Nh7 {[%clk 0:02:14.9]} 31... Qc6 {[%clk 0:00:51.7]}
32. Ng5+ {[%clk 0:01:59.8]} 32... Kg6 {[%clk 0:00:52.4]} 33. Nh3 {[%clk
0:01:50.8]} 33... Bxh3 {[%clk 0:00:51.2]} 34. Qxh3 {[%clk 0:01:51.1]} 34... Kf6
{[%clk 0:00:48.2]} 35. Qh4+ {[%clk 0:01:48.7]} 35... Ke5 {[%clk 0:00:45.6]} 36.
Ne2 {[%clk 0:01:31]} 36... Qd6 {[%clk 0:00:40.9]} 37. Qg5+ {[%clk 0:01:28.6]}
37... Ke6 {[%clk 0:00:41.2]} 38. Qg6+ {[%clk 0:01:28.8]} 38... Kd7 {[%clk
0:00:41.5]} 39. Qxd6+ {[%clk 0:01:29.9]} 39... Kxd6 {[%clk 0:00:42.8]} 40. Nxf4
{[%clk 0:01:31.8]} 1-0

[Event "*** Titled Tuesday Blitz"]
[Site "Chess.com"]
[Date "2019.06.04"]
[Round "5"]
[White "NM2019"]
[Black "jamengrand"]
[Result "1-0"]
[WhiteElo "2117"]
[BlackElo "2117"]
[TimeControl "180+2"]
[EndTime "14:05:19 PDT"]
[Termination "NM2019 won on time"]

1. e4 {[%clk 0:03:01.6]} 1... e5 {[%clk 0:00:42.1]} 2. Nf3 {[%clk 0:03:00.6]}
2... Nc6 {[%clk 0:00:43.4]} 3. Bb5 {[%clk 0:03:02]} 3... Nf6 {[%clk 0:00:44.3]}
4. d3 {[%clk 0:03:03]} 4... Bd6 {[%clk 0:00:41.9]} 5. O-O {[%clk 0:03:03.7]}
5... h6 {[%clk 0:00:42.6]} 6. c3 {[%clk 0:03:05.1]} 6... a6 {[%clk 0:00:40.8]}
7. Ba4 {[%clk 0:03:06.2]} 7... b5 {[%clk 0:00:41.7]} 8. Bc2 {[%clk 0:03:06.9]}
8... Bb7 {[%clk 0:00:42.8]} 9. d4 {[%clk 0:03:08.2]} 9... g5 {[%clk 0:00:41.4]}
10. a4 {[%clk 0:03:08.8]} 10... g4 {[%clk 0:00:37.7]} 11. Nh4 {[%clk 0:03:08.5]}
11... exd4 {[%clk 0:00:37.7]} 12. Nf5 {[%clk 0:03:08.1]} 12... dxc3 {[%clk
0:00:27.5]} 13. Nxc3 {[%clk 0:03:08.5]} 13... Be5 {[%clk 0:00:26.7]} 14. axb5
{[%clk 0:02:58]} 14... axb5 {[%clk 0:00:26.9]} 15. Rxa8 {[%clk 0:02:59.1]} 15...
Bxa8 {[%clk 0:00:28]} 16. Nxb5 {[%clk 0:03:00.2]} 16... d6 {[%clk 0:00:21.5]}
17. Nc3 {[%clk 0:02:53.1]} 17... Ne7 {[%clk 0:00:20.9]} 18. Ba4+ {[%clk
0:02:47.5]} 18... Kf8 {[%clk 0:00:20.6]} 19. Bxh6+ {[%clk 0:02:46.9]} 19... Kg8
{[%clk 0:00:22.1]} 20. Qd2 {[%clk 0:02:27.5]} 20... Nxf5 {[%clk 0:00:21]} 21.
exf5 {[%clk 0:02:28.5]} 21... Ne4 {[%clk 0:00:14.3]} 22. Nxe4 {[%clk 0:02:26.1]}
22... Bxe4 {[%clk 0:00:12.4]} 23. f4 {[%clk 0:02:00.9]} 23... gxf3 {[%clk
0:00:10.2]} 24. gxf3 {[%clk 0:01:56.3]} 24... Bb7 {[%clk 0:00:04.5]} 25. Kh1
{[%clk 0:01:47.7]} 25... Qh4 {[%clk 0:00:05.5]} 26. Rg1+ {[%clk 0:01:45.4]}
26... Kh7 {[%clk 0:00:06]} 27. Qg2 {[%clk 0:01:28.7]} 27... Qxh6 {[%clk
0:00:06.4]} 28. f6 {[%clk 0:01:24.8]} 28... Bxf3 {[%clk 0:00:07.4]} 29. Bc2+
{[%clk 0:01:24.4]} 29... Be4 {[%clk 0:00:06.8]} 30. Bxe4+ {[%clk 0:01:25.1]} 1-0

[Event "*** Titled Tuesday Blitz"]
[Site "Chess.com"]
[Date "2019.06.04"]
[Round "5"]
[White "igorkovalenko"]
[Black "Zubrrr"]
[Result "1-0"]
[WhiteElo "2896"]
[BlackElo "2720"]
[TimeControl "180+2"]
[EndTime "14:05:20 PDT"]
[Termination "igorkovalenko won by resignation"]

1. d4 {[%clk 0:03:01.5]} 1... d5 {[%clk 0:02:58.2]} 2. Nf3 {[%clk 0:03:01.5]}
2... Nf6 {[%clk 0:02:59]} 3. e3 {[%clk 0:03:02.1]} 3... Bg4 {[%clk 0:02:59.5]}
4. h3 {[%clk 0:03:02]} 4... Bh5 {[%clk 0:03:00.2]} 5. c4 {[%clk 0:03:00.8]} 5...
e6 {[%clk 0:02:58.7]} 6. Qb3 {[%clk 0:03:01.2]} 6... Bxf3 {[%clk 0:02:47.3]} 7.
gxf3 {[%clk 0:02:58.3]} 7... Nbd7 {[%clk 0:02:33.1]} 8. Qxb7 {[%clk 0:02:55.8]}
8... c5 {[%clk 0:02:32.5]} 9. cxd5 {[%clk 0:02:53.2]} 9... exd5 {[%clk
0:02:32.3]} 10. Nc3 {[%clk 0:02:48.4]} 10... cxd4 {[%clk 0:02:26.5]} 11. exd4
{[%clk 0:02:39.2]} 11... Rb8 {[%clk 0:02:10.3]} 12. Qxa7 {[%clk 0:02:34.7]}
12... Bd6 {[%clk 0:02:11.2]} 13. Bb5 {[%clk 0:02:15.2]} 13... O-O {[%clk
0:02:07.9]} 14. Qa4 {[%clk 0:01:58.8]} 14... Qe7+ {[%clk 0:01:45.3]} 15. Kd1
{[%clk 0:01:59.7]} 15... Nb6 {[%clk 0:01:45.2]} 16. Qc2 {[%clk 0:01:59.9]} 16...
Rfc8 {[%clk 0:01:43.8]} 17. Re1 {[%clk 0:01:56.1]} 17... Qa7 {[%clk 0:01:37.4]}
18. Bg5 {[%clk 0:01:44.8]} 18... Nh5 {[%clk 0:01:21.1]} 19. a4 {[%clk
0:01:41.2]} 19... Nc4 {[%clk 0:00:34.3]} 20. Be3 {[%clk 0:01:41.9]} 20... Qa5
{[%clk 0:00:21.2]} 21. Rc1 {[%clk 0:01:39.8]} 21... Bb4 {[%clk 0:00:18.8]} 22.
Re2 {[%clk 0:01:31.1]} 22... g6 {[%clk 0:00:15.3]} 23. Qb3 {[%clk 0:01:24.5]}
23... Nxb2+ {[%clk 0:00:07.7]} 24. Rxb2 {[%clk 0:01:25.1]} 24... Bxc3 {[%clk
0:00:08.2]} 25. Rbc2 {[%clk 0:01:24.7]} 25... Ng7 {[%clk 0:00:06.8]} 26. Rxc3
{[%clk 0:01:25.2]} 26... Rd8 {[%clk 0:00:08.1]} 27. Rc6 {[%clk 0:01:18.6]} 27...
Qa7 {[%clk 0:00:04.6]} 28. Rc7 {[%clk 0:01:18.9]} 28... Qb6 {[%clk 0:00:05.6]}
29. R1c6 {[%clk 0:01:20]} 29... Qa5 {[%clk 0:00:06.7]} 30. Qc3 {[%clk
0:01:21.4]} 30... Rxb5 {[%clk 0:00:06.6]} 31. axb5 {[%clk 0:01:21.9]} 31... Qxb5
{[%clk 0:00:08.2]} 32. Rc8 {[%clk 0:01:23.1]} 32... Qf1+ {[%clk 0:00:08.9]} 33.
Kd2 {[%clk 0:01:24]} 1-0

[Event "*** Titled Tuesday Blitz"]
[Site "Chess.com"]
[Date "2019.06.04"]
[Round "5"]
[White "Rakesh"]
[Black "Saitama_Hero"]
[Result "0-1"]
[WhiteElo "2240"]
[BlackElo "2431"]
[TimeControl "180+2"]
[EndTime "14:05:28 PDT"]
[Termination "Saitama_Hero won by checkmate"]

1. e4 {[%clk 0:03:01.9]} 1... d6 {[%clk 0:03:00.2]} 2. d4 {[%clk 0:03:02.8]}
2... g6 {[%clk 0:03:02.1]} 3. Nc3 {[%clk 0:03:03.3]} 3... Bg7 {[%clk 0:03:03.7]}
4. Nf3 {[%clk 0:03:03.8]} 4... Nf6 {[%clk 0:03:03.4]} 5. Bd3 {[%clk 0:02:48.7]}
5... O-O {[%clk 0:03:04.7]} 6. h3 {[%clk 0:02:50.6]} 6... c5 {[%clk 0:03:03.3]}
7. O-O {[%clk 0:02:52.5]} 7... cxd4 {[%clk 0:03:03.5]} 8. Nxd4 {[%clk
0:02:47.4]} 8... Nc6 {[%clk 0:03:05.4]} 9. Be3 {[%clk 0:02:13.4]} 9... d5 {[%clk
0:03:02.3]} 10. Nxc6 {[%clk 0:01:10.6]} 10... bxc6 {[%clk 0:03:04.2]} 11. exd5
{[%clk 0:01:11.7]} 11... Nxd5 {[%clk 0:03:06.1]} 12. Nxd5 {[%clk 0:01:12.4]}
12... cxd5 {[%clk 0:03:07.9]} 13. c3 {[%clk 0:01:13.1]} 13... Rb8 {[%clk
0:02:59.1]} 14. Qe2 {[%clk 0:01:10.7]} 14... Qa5 {[%clk 0:02:57.2]} 15. Rfd1
{[%clk 0:01:04.9]} 15... e6 {[%clk 0:02:56.5]} 16. a4 {[%clk 0:01:00.3]} 16...
Bd7 {[%clk 0:02:56.2]} 17. b4 {[%clk 0:00:47.3]} 17... Qc7 {[%clk 0:02:56.7]}
18. Rdc1 {[%clk 0:00:48.4]} 18... Rfc8 {[%clk 0:02:47.7]} 19. Bc5 {[%clk
0:00:37.3]} 19... a5 {[%clk 0:02:42.8]} 20. Bb5 {[%clk 0:00:26.7]} 20... Bxb5
{[%clk 0:02:40.4]} 21. axb5 {[%clk 0:00:25.5]} 21... axb4 {[%clk 0:02:41.3]} 22.
Bxb4 {[%clk 0:00:27.4]} 22... Qd7 {[%clk 0:02:23.5]} 23. Ra5 {[%clk 0:00:20.5]}
23... Rc4 {[%clk 0:02:11]} 24. Rb1 {[%clk 0:00:18.7]} 24... Bxc3 {[%clk
0:02:04]} 25. Bxc3 {[%clk 0:00:20.6]} 25... Rxc3 {[%clk 0:02:05.3]} 26. b6
{[%clk 0:00:22.1]} 26... Qc6 {[%clk 0:02:01.5]} 27. Rab5 {[%clk 0:00:21.5]}
27... Rc1+ {[%clk 0:02:00.3]} 28. Rxc1 {[%clk 0:00:22.1]} 28... Qxc1+ {[%clk
0:02:00]} 29. Kh2 {[%clk 0:00:23.6]} 29... Rxb6 {[%clk 0:01:57.7]} 30. Ra5
{[%clk 0:00:05.1]} 30... Qc7+ {[%clk 0:01:56.2]} 31. g3 {[%clk 0:00:05]} 31...
Qb7 {[%clk 0:01:42.9]} 32. Qe5 {[%clk 0:00:04.3]} 32... Rb2 {[%clk 0:01:43.3]}
33. Kg2 {[%clk 0:00:03.3]} 33... d4+ {[%clk 0:01:43]} 34. Kf1 {[%clk 0:00:03.7]}
34... Rb1+ {[%clk 0:01:43.6]} 35. Ke2 {[%clk 0:00:05.1]} 35... Rb2+ {[%clk
0:01:35.5]} 36. Kf1 {[%clk 0:00:05.1]} 36... Qh1# {[%clk 0:01:33.6]} 0-1

[Event "*** Titled Tuesday Blitz"]
[Site "Chess.com"]
[Date "2019.06.04"]
[Round "5"]
[White "velemajstor767276"]
[Black "Drags95"]
[Result "1/2-1/2"]
[WhiteElo "2524"]
[BlackElo "2788"]
[TimeControl "180+2"]
[EndTime "14:05:36 PDT"]
[Termination "Game drawn by repetition"]

1. d4 {[%clk 0:03:01.9]} 1... Nf6 {[%clk 0:02:59.5]} 2. c4 {[%clk 0:03:03.1]}
2... e6 {[%clk 0:03:01]} 3. Nc3 {[%clk 0:03:03.9]} 3... Bb4 {[%clk 0:03:01.8]}
4. f3 {[%clk 0:03:05.3]} 4... d5 {[%clk 0:02:57.8]} 5. a3 {[%clk 0:03:06]} 5...
Bxc3+ {[%clk 0:02:58.2]} 6. bxc3 {[%clk 0:03:07.9]} 6... c5 {[%clk 0:02:59.2]}
7. cxd5 {[%clk 0:03:07.9]} 7... exd5 {[%clk 0:02:56.8]} 8. e3 {[%clk 0:03:07.7]}
8... c4 {[%clk 0:02:58.1]} 9. Ne2 {[%clk 0:03:05.5]} 9... O-O {[%clk 0:02:59.2]}
10. Ng3 {[%clk 0:03:06.6]} 10... Nc6 {[%clk 0:03:00.8]} 11. Be2 {[%clk
0:03:03.7]} 11... Na5 {[%clk 0:03:02.3]} 12. e4 {[%clk 0:02:57.5]} 12... Nb3
{[%clk 0:02:46.2]} 13. Ra2 {[%clk 0:02:46.3]} 13... b5 {[%clk 0:02:47.5]} 14.
O-O {[%clk 0:02:44.9]} 14... a5 {[%clk 0:02:49.1]} 15. Bg5 {[%clk 0:02:43.2]}
15... h6 {[%clk 0:02:49.3]} 16. Be3 {[%clk 0:02:39.3]} 16... Ra6 {[%clk
0:02:41.1]} 17. e5 {[%clk 0:02:38.8]} 17... Ne8 {[%clk 0:02:38.1]} 18. f4 {[%clk
0:02:40.2]} 18... f5 {[%clk 0:02:37.3]} 19. Qc2 {[%clk 0:02:33.1]} 19... Nc7
{[%clk 0:02:27.8]} 20. Rb1 {[%clk 0:02:28.3]} 20... Rc6 {[%clk 0:02:06.9]} 21.
Bf3 {[%clk 0:02:19.4]} 21... Be6 {[%clk 0:02:07.6]} 22. Rxb3 {[%clk 0:02:15.9]}
22... cxb3 {[%clk 0:02:07.9]} 23. Qxb3 {[%clk 0:02:17.8]} 23... Qe7 {[%clk
0:02:02.2]} 24. Bd2 {[%clk 0:02:13.9]} 24... Rc8 {[%clk 0:02:01.3]} 25. Be2
{[%clk 0:02:12.5]} 25... Qd8 {[%clk 0:01:44.4]} 26. Bd3 {[%clk 0:02:03.7]} 26...
Qd7 {[%clk 0:01:44.4]} 27. Nf1 {[%clk 0:02:01.9]} 27... Rc4 {[%clk 0:01:36.6]}
28. Ne3 {[%clk 0:01:57.3]} 28... g5 {[%clk 0:01:32.8]} 29. Bxc4 {[%clk
0:01:53.1]} 29... dxc4 {[%clk 0:01:34.7]} 30. Qd1 {[%clk 0:01:52.3]} 30... gxf4
{[%clk 0:01:32.7]} 31. Nc2 {[%clk 0:01:53.3]} 31... Nd5 {[%clk 0:01:32.3]} 32.
h3 {[%clk 0:01:51.1]} 32... Kh7 {[%clk 0:01:33.7]} 33. Qf3 {[%clk 0:01:50]}
33... Rg8 {[%clk 0:01:35]} 34. Bxf4 {[%clk 0:01:49]} 34... Bf7 {[%clk
0:01:16.3]} 35. Ra1 {[%clk 0:01:38.5]} 35... Bh5 {[%clk 0:01:15.6]} 36. Qf2
{[%clk 0:01:30.6]} 36... Nxc3 {[%clk 0:01:16.2]} 37. Kh2 {[%clk 0:01:29.8]}
37... Bf7 {[%clk 0:01:10.2]} 38. Bxh6 {[%clk 0:01:24]} 38... Bd5 {[%clk
0:00:36.1]} 39. Ne3 {[%clk 0:01:24]} 39... Kxh6 {[%clk 0:00:35.4]} 40. Qh4+
{[%clk 0:01:25.2]} 40... Kg7 {[%clk 0:00:36.6]} 41. Qf6+ {[%clk 0:01:25.6]}
41... Kh7 {[%clk 0:00:37.1]} 42. Qh4+ {[%clk 0:01:25.2]} 42... Kg7 {[%clk
0:00:37.6]} 43. Qf6+ {[%clk 0:01:21.3]} 43... Kh7 {[%clk 0:00:38.4]} 44. Qh4+
{[%clk 0:01:21.3]} 44... Kg7 {[%clk 0:00:39.7]} 1/2-1/2